bitfinex/quotes_BTCUSD_20240815
["timestamp","ask_amount","ask_price","bid_price","bid_amount"]
[1723728875012,0.0144077,59357.0,59343.0,0.1088]
[1723728875208,0.0816,59369.0,59349.0,0.0836]
[1723728875412,0.0816,59369.0,59350.0,0.17155454]
[1723728875413,0.01437464,59362.0,59350.0,0.17155454]
[1723728875619,0.168441,59368.0,59353.0,0.168482]
[1723728875824,0.0816,59369.0,59354.0,0.17155454]
[1723728876031,0.002,59364.0,59363.0,0.168455]
[1723728876232,0.01467654,59370.0,59358.0,0.336936]
[1723728876457,0.007,59369.0,59361.0,0.33692]
[1723728876664,0.009,59369.0,59362.0,0.168457]
[1723728876869,0.009,59369.0,59358.0,0.17155454]
[1723728877073,0.007,59369.0,59363.0,0.168454]
[1723728877279,0.007,59369.0,59362.0,0.336913]
[1723728877280,0.007,59369.0,59362.0,0.505368]
[1723728877490,0.007,59369.0,59350.0,0.168491]
[1723728877491,0.168449,59365.0,59350.0,0.168491]
[1723728877723,0.0817,59367.0,59353.0,0.168482]
[1723728877916,0.168458,59362.0,59347.0,0.68316262]
[1723728878137,0.023,59361.0,59350.0,0.08577727]
[1723728878334,0.33688,59369.0,59348.0,0.28125454]
[1723728878335,0.1,59368.0,59351.0,0.26070066]
[1723728878545,0.1,59370.0,59351.0,0.26070066]
[1723728878546,0.1,59370.0,59351.0,0.26270066]
[1723728878752,0.000827,59374.0,59362.0,0.33691]
[1723728878961,0.003,59367.0,59362.0,0.17155454]
[1723728879174,0.003,59367.0,59364.0,0.16845]
[1723728879383,0.001,59367.0,59366.0,0.168446]
[1723728879590,0.001,59367.0,59363.0,0.336906]
[1723728879814,0.001,59367.0,59364.0,0.17155454]
[1723728880004,0.000827,59374.0,59366.0,0.168445]
[1723728880209,0.000827,59374.0,59366.0,0.336892]
[1723728880471,0.000827,59374.0,59364.0,0.17155454]
[1723728880472,0.000827,59374.0,59364.0,0.168451]
[1723728880670,0.169251,59374.0,59359.0,0.168464]
[1723728880915,0.2056,59373.0,59356.0,0.202353]
[1723728881171,0.1056,59373.0,59360.0,0.17155454]
[1723728881413,0.000827,59374.0,59373.0,0.505279]
[1723728882131,0.000827,59374.0,59373.0,0.842132]
[1723728882368,0.000827,59374.0,59373.0,0.505279]
[1723728883014,0.000827,59374.0,59373.0,0.168426]
[1723728883229,0.000827,59374.0,59373.0,0.172426]
[1723728883433,0.000827,59374.0,59373.0,0.009]
[1723728883953,0.108427,59374.0,59373.0,0.009]
[1723728884351,0.000827,59374.0,59373.0,0.177426]
[1723728884559,0.000827,59374.0,59373.0,0.514279]
[1723728884776,0.000827,59374.0,59373.0,0.851132]
[1723728885184,0.000827,59374.0,59373.0,1.35953954]
[1723728885390,0.000827,59374.0,59373.0,1.45456274]
[1723728885997,0.000827,59374.0,59373.0,1.35953954]
[1723728886427,0.000827,59374.0,59373.0,1.83137254]
[1723728886650,0.000827,59374.0,59373.0,2.15922554]
[1723728886856,0.000827,59374.0,59373.0,1.83637254]
[1723728887033,0.000827,59374.0,59373.0,2.17322554]
[1723728887268,0.000827,59374.0,59373.0,2.34478008]
[1723728887488,0.001827,59374.0,59373.0,2.20572708]
[1723728887935,0.001827,59374.0,59373.0,2.5572255]
[1723728888145,0.001827,59374.0,59373.0,2.2203725]
[1723728888795,0.000827,59374.0,59373.0,2.1923725]
[1723728889011,0.000827,59374.0,59373.0,2.2203725]
[1723728889423,0.000827,59374.0,59373.0,2.2063725]
[1723728889631,0.000827,59374.0,59373.0,2.5572255]
[1723728889851,0.000827,59374.0,59373.0,3.37724511]
[1723728890082,0.000826,59395.0,59373.0,3.37724511]
[1723728890083,0.000826,59395.0,59394.0,0.168367]
[1723728890279,0.000826,59395.0,59394.0,1.11052624]
[1723728890513,0.000826,59395.0,59394.0,1.44726024]
[1723728891208,0.000826,59395.0,59394.0,1.58934024]
[1723728891417,0.000826,59395.0,59394.0,1.92607424]
[1723728891975,0.000826,59395.0,59394.0,2.26280824]
[1723728892177,0.000826,59395.0,59394.0,2.27580824]
[1723728892415,0.000826,59395.0,59394.0,2.02607424]
[1723728892669,0.000826,59395.0,59394.0,2.37880824]
[1723728892875,0.001826,59395.0,59394.0,2.40720346]
[1723728893084,0.001826,59395.0,59394.0,2.39320346]
[1723728893293,0.000826,59395.0,59394.0,2.39320346]
[1723728893726,0.000826,59395.0,59394.0,2.40720346]
[1723728893727,0.001826,59395.0,59394.0,2.40720346]
[1723728894248,0.001826,59395.0,59394.0,2.49298073]
[1723728894502,0.001826,59395.0,59394.0,2.57549377]
[1723728895134,0.0002,59419.0,59403.0,1.548953]
[1723728895337,0.0002,59419.0,59403.0,1.93700333]
[1723728895773,0.0002,59419.0,59403.0,2.36118633]
[1723728896035,0.0002,59419.0,59403.0,2.02450333]
[1723728896567,0.0002,59419.0,59408.0,1.399569]
[1723728896815,0.0002,59419.0,59417.0,0.538786]
[1723728897052,0.0002,59419.0,59417.0,1.62282714]
[1723728897299,0.00825,59423.0,59422.0,1.211892]
[1723728897561,0.00825,59423.0,59422.0,1.92732154]
[1723728897833,0.00825,59434.0,59433.0,0.982462]
[1723728898082,0.00825,59434.0,59433.0,2.01394254]
[1723728898593,0.00825,59434.0,59433.0,2.01194254]
[1723728898872,0.00825,59434.0,59433.0,2.35045554]
[1723728899115,0.00825,59434.0,59433.0,2.01194254]
[1723728899360,0.00825,59434.0,59433.0,2.14617503]
[1723728899882,0.00825,59434.0,59433.0,2.18877515]
[1723728900116,0.00825,59434.0,59433.0,2.22924176]
[1723728900400,0.00825,59434.0,59433.0,1.42582966]
[1723728900709,0.00825,59434.0,59433.0,1.06071654]
[1723728900908,0.00825,59434.0,59433.0,1.39722954]
[1723728901417,0.00825,59434.0,59433.0,1.38322954]
[1723728901759,0.00825,59434.0,59433.0,1.06071654]
[1723728902014,0.00825,59434.0,59433.0,1.83981419]
[1723728902203,0.00825,59434.0,59433.0,1.39722954]
[1723728902438,0.00825,59434.0,59433.0,0.71020354]
[1723728902664,0.00825,59434.0,59433.0,1.06071654]
[1723728902906,0.20475,59434.0,59433.0,0.014]
[1723728903447,0.20475,59434.0,59433.0,0.028]
[1723728903676,0.20475,59434.0,59433.0,0.014]
[1723728904140,0.20475,59434.0,59433.0,0.028]
[1723728904382,0.20475,59434.0,59433.0,0.014]
[1723728904663,0.20475,59434.0,59433.0,0.028]
[1723728905113,0.20475,59434.0,59433.0,0.014]
[1723728905319,0.521515,59433.0,59413.0,0.03388]
[1723728905542,0.0985,59427.0,59413.0,0.03388]
[1723728905782,0.08577727,59426.0,59413.0,0.03388]
[1723728905989,0.08577727,59426.0,59402.0,1.2579]
[1723728905990,0.0815,59418.0,59402.0,1.2579]
[1723728906206,0.336527,59431.0,59399.0,0.98326362]
[1723728906207,0.1046,59429.0,59415.0,0.336613]
[1723728906408,0.1046,59429.0,59414.0,0.60044089]
[1723728906409,0.0815,59430.0,59429.0,0.168268]
[1723728906620,0.0815,59430.0,59429.0,0.87522]
[1723728906830,0.11285,59434.0,59433.0,0.504769]
[1723728907254,0.11285,59434.0,59433.0,0.841282]
[1723728907466,0.11285,59434.0,59433.0,1.34934954]
[1723728907467,0.00825,59434.0,59433.0,1.34934954]
[1723728907668,0.00825,59434.0,59433.0,1.52155249]
[1723728907869,0.00825,59434.0,59433.0,1.04671654]
[1723728908075,0.00825,59434.0,59433.0,0.20543454]
[1723728908305,0.00825,59434.0,59417.0,1.2579]
[1723728908306,0.0842,59432.0,59426.0,0.03388]
[1723728908518,0.0842,59432.0,59418.0,0.51466362]
[1723728908734,0.0842,59432.0,59417.0,1.2579]
[1723728908735,0.18807727,59431.0,59417.0,1.2579]
[1723728908933,0.168265,59430.0,59429.0,0.006]
[1723728909146,0.0842,59432.0,59411.0,0.03388]
[1723728909384,0.0842,59432.0,59412.0,0.17155454]
[1723728909385,0.1023,59429.0,59412.0,0.17155454]
[1723728909610,1.029567,59427.0,59426.0,0.012]
[1723728909823,1.19420938,59427.0,59426.0,0.012]
[1723728910032,0.379473,59427.0,59426.0,0.012]
[1723728910238,0.1882,59427.0,59426.0,0.168276]
[1723728910672,0.1882,59427.0,59426.0,0.538709]
[1723728910900,0.1882,59427.0,59426.0,0.875262]
[1723728911105,0.0002,59439.0,59433.0,0.504769]
[1723728911106,0.11115,59434.0,59433.0,0.504769]
[1723728911318,0.00825,59434.0,59433.0,2.60724954]
[1723728911516,0.00825,59434.0,59433.0,2.64112954]
[1723728911724,1e-08,59438.0,59437.0,1.211595]
[1723728911936,1e-08,59438.0,59437.0,1.04665954]
[1723728912202,1e-08,59438.0,59437.0,1.21348007]
[1723728912608,1e-08,59438.0,59437.0,1.04665954]
[1723728913022,1e-08,59438.0,59437.0,1.06065954]
[1723728913445,1e-08,59438.0,59437.0,0.72416954]
[1723728913648,0.10770001,59438.0,59437.0,0.216125]
[1723728913866,1e-08,59438.0,59437.0,0.72416954]
[1723728914070,1e-08,59438.0,59437.0,0.89572408]
[1723728914296,1e-08,59438.0,59437.0,0.216125]
[1723728914535,1e-08,59438.0,59437.0,0.04788]
[1723728914741,1e-08,59438.0,59437.0,0.06188]
[1723728914954,0.08300001,59438.0,59437.0,0.06188]
[1723728915164,0.08300001,59438.0,59437.0,0.04788]
[1723728915370,1e-08,59438.0,59437.0,0.50425754]
[1723728915571,1e-08,59438.0,59437.0,1.19123754]
[1723728915778,1e-08,59438.0,59437.0,1.07465954]
[1723728915995,1e-08,59438.0,59437.0,1.41114954]
[1723728916208,1e-08,59438.0,59437.0,1.49344954]
[1723728917257,1e-08,59438.0,59437.0,2.75134954]
[1723728917709,1e-08,59438.0,59437.0,3.08783954]
[1723728917911,1e-08,59438.0,59437.0,3.26139408]
[1723728918114,0.0002,59439.0,59438.0,1.550062]
[1723728918321,0.0004829,59446.0,59445.0,0.874992]
[1723728918596,0.0004829,59446.0,59445.0,2.24858154]
[1723728918791,0.0004829,59446.0,59445.0,1.91213654]
[1723728919073,0.0004829,59446.0,59445.0,2.02858473]
[1723728919496,0.0004829,59446.0,59445.0,1.60813973]
[1723728919699,0.0004829,59446.0,59445.0,1.94458473]
[1723728920121,0.00825,59455.0,59454.0,1.211259]
[1723728920261,0.00825,59455.0,59454.0,2.64051354]
[1723728920458,0.00825,59455.0,59454.0,2.81206808]
[1723728920784,0.00825,59455.0,59454.0,2.30411954]
[1723728921157,0.00825,59455.0,59454.0,2.64051354]
[1723728922083,0.00825,59455.0,59454.0,1.459777]
[1723728922327,0.11165,59455.0,59454.0,0.04788]
[1723728922732,0.11165,59455.0,59454.0,0.72402554]
[1723728922733,0.00825,59455.0,59454.0,0.72402554]
[1723728922933,0.00825,59455.0,59454.0,1.13282209]
[1723728923144,0.00825,59455.0,59454.0,1.46921609]
[1723728923358,0.00825,59455.0,59454.0,2.72691609]
[1723728924263,0.00825,59455.0,59454.0,3.48620409]
[1723728924464,0.00020326,59465.0,59464.0,1.213059]
[1723728924703,2.6e-07,59465.0,59464.0,4.27586935]
[1723728924950,3e-07,59472.0,59471.0,1.738521]
[1723728925166,3e-07,59472.0,59471.0,2.39541149]
[1723728925378,3e-07,59472.0,59471.0,2.05911349]
[1723728925597,3e-07,59472.0,59471.0,3.25932554]
[1723728925810,3e-07,59472.0,59471.0,3.30337118]
[1723728926019,3e-07,59472.0,59471.0,3.66997118]
[1723728926484,3e-07,59472.0,59471.0,3.68397118]
[1723728926690,0.2540404,59488.0,59487.0,0.201983]
[1723728926911,0.2540404,59488.0,59487.0,0.37353754]
[1723728927115,0.2540404,59488.0,59487.0,1.60781229]
[1723728927623,0.00313181,59500.0,59498.0,0.504217]
[1723728927860,0.00313181,59500.0,59498.0,1.01191654]
[1723728928125,0.00061991,59507.0,59498.0,1.01191654]
[1723728928126,0.08639718,59507.0,59498.0,0.17155454]
[1723728928385,0.00061991,59507.0,59504.0,0.67572054]
[1723728928885,0.00061991,59507.0,59490.0,0.0851]
[1723728929131,0.00061991,59507.0,59500.0,0.17155454]
[1723728929132,0.0859,59504.0,59500.0,0.17155454]
[1723728929393,0.00061991,59507.0,59500.0,0.17155454]
[1723728929394,0.00061991,59507.0,59504.0,0.504166]
[1723728929612,0.00061991,59507.0,59504.0,1.01183154]
[1723728929810,0.00061991,59507.0,59504.0,0.67572054]
[1723728930017,0.00061991,59507.0,59504.0,1.34794254]
[1723728930649,0.00061991,59507.0,59504.0,1.78295354]
[1723728930857,0.00061991,59507.0,59504.0,1.82870131]
[1723728931077,0.00061991,59507.0,59504.0,1.78295354]
[1723728931281,0.00061991,59507.0,59504.0,1.79695354]
[1723728931538,0.00061991,59507.0,59504.0,1.02583154]
[1723728931743,0.00061991,59507.0,59504.0,0.35360954]
[1723728931957,0.10271,59505.0,59504.0,0.02031139]
[1723728932204,0.352863,59505.0,59504.0,0.02031139]
[1723728932405,0.352863,59505.0,59504.0,0.028]
[1723728932406,0.688969,59505.0,59504.0,0.028]
[1723728932614,0.18481,59505.0,59504.0,0.028]
[1723728933087,0.18481,59505.0,59504.0,0.014]
[1723728933319,0.00011,59505.0,59504.0,0.67572054]
[1723728933527,7e-05,59505.0,59504.0,1.34794254]
[1723728933735,7e-05,59505.0,59504.0,1.76845461]
[1723728933955,7e-05,59505.0,59504.0,1.95593188]
[1723728934165,7e-05,59505.0,59504.0,2.29204288]
[1723728934383,7e-05,59505.0,59504.0,1.95593188]
[1723728934594,0.00020546,59506.0,59505.0,1.512477]
[1723728934831,0.00020546,59506.0,59505.0,1.69033047]
[1723728935259,0.00020546,59506.0,59505.0,1.35422447]
[1723728935911,0.00020546,59506.0,59505.0,1.36822447]
[1723728936142,0.00020546,59506.0,59505.0,1.71833047]
[1723728936351,0.00020546,59506.0,59505.0,1.69033047]
[1723728936560,0.00020546,59506.0,59505.0,1.70433047]
[1723728936758,0.00020546,59506.0,59505.0,1.80433047]
[1723728936972,0.00020546,59506.0,59505.0,0.69601247]
[1723728937397,0.00020546,59506.0,59505.0,1.36822447]
[1723728937597,0.00020546,59506.0,59505.0,1.03211847]
[1723728937876,0.2590909,59508.0,59507.0,0.840235]
[1723728938077,0.2590909,59508.0,59507.0,0.33960154]
[1723728938286,0.3416909,59508.0,59507.0,0.17769214]
[1723728938921,0.2590909,59508.0,59507.0,0.17769214]
[1723728939145,0.2590909,59508.0,59507.0,0.69583314]
[1723728939351,0.2590909,59508.0,59507.0,0.19655454]
[1723728939560,0.2590909,59508.0,59507.0,0.69283314]
[1723728939772,0.3628909,59508.0,59507.0,0.19169214]
[1723728940007,0.4424909,59508.0,59507.0,0.0201376]
[1723728940215,0.4424909,59508.0,59477.0,0.59002088]
[1723728940216,0.168074,59498.0,59482.0,0.336231]
[1723728940576,0.168074,59498.0,59477.0,0.51466362]
[1723728940577,0.1834,59494.0,59492.0,0.51466362]
[1723728940792,0.1834,59494.0,59493.0,0.33964154]
[1723728941002,0.1834,59494.0,59493.0,0.18208563]
[1723728941410,0.1834,59494.0,59493.0,0.01053109]
[1723728941820,0.08577727,59498.0,59483.0,0.168114]
[1723728941821,0.25385027,59498.0,59483.0,0.168114]
[1723728942018,0.25385027,59498.0,59483.0,0.17155454]
[1723728942019,0.168093,59491.0,59483.0,0.17155454]
[1723728942368,0.1,59497.0,59484.0,0.01058088]
[1723728942585,0.08577727,59492.0,59484.0,0.01058088]
[1723728942794,0.08577727,59486.0,59484.0,0.01058088]
[1723728943236,0.42196227,59492.0,59467.0,0.1016]
[1723728943237,0.08577727,59492.0,59467.0,0.1016]
[1723728943464,0.25386727,59492.0,59483.0,0.014]
[1723728943673,0.1,59497.0,59481.0,0.16812]
[1723728943883,0.1,59497.0,59484.0,0.01058088]
[1723728943884,0.168082,59495.0,59484.0,0.01058088]
[1723728944093,0.08577727,59492.0,59482.0,0.01058946]
[1723728944335,0.336201,59489.0,59485.0,0.01057659]
[1723728944541,0.43617,59494.0,59479.0,0.336248]
[1723728944542,0.1,59494.0,59479.0,0.336248]
[1723728944773,0.1,59494.0,59480.0,0.00336152]
[1723728944987,0.27851,59505.0,59483.0,0.336225]
[1723728945221,0.168071,59499.0,59484.0,0.18891598]
[1723728945470,0.001,59492.0,59484.0,0.18217123]
[1723728945927,0.08577727,59500.0,59485.0,0.00336167]
[1723728946154,0.08577727,59494.0,59484.0,0.01061669]
[1723728946385,0.168103,59487.0,59486.0,0.01060859]
[1723728946612,0.168103,59487.0,59483.0,0.009]
[1723728946613,0.08577727,59488.0,59484.0,0.014]
[1723728946859,0.336209,59487.0,59483.0,0.009]
[1723728947104,0.504336,59484.0,59483.0,0.009]
[1723728947311,0.336244,59481.0,59475.0,0.0009075]
[1723728947571,0.168134,59477.0,59475.0,0.0009075]
[1723728947807,0.08577727,59482.0,59475.0,0.0009075]
[1723728948042,0.1847,59481.0,59475.0,0.0009075]
[1723728948747,0.123,59486.0,59475.0,0.0009075]
[1723728948748,0.69528227,59476.0,59475.0,0.0009075]
[1723728948983,0.94663681,59476.0,59475.0,0.0009075]
[1723728949199,1.30590681,59476.0,59475.0,0.0009075]
[1723728949408,1.74217681,59476.0,59475.0,0.0009075]
[1723728949614,1.91373135,59476.0,59475.0,0.0109075]
[1723728949828,0.0798,59467.0,59458.0,0.03388]
[1723728950054,0.0798,59467.0,59450.0,0.51466362]
[1723728950055,0.1051,59459.0,59450.0,0.51466362]
[1723728950263,0.1051,59450.0,59435.0,0.51466362]
[1723728950461,0.09888773,59449.0,59435.0,0.51466362]
[1723728950710,0.0798,59449.0,59435.0,0.51466362]
[1723728950911,0.0798,59449.0,59433.0,0.03388]
[1723728950912,0.08577727,59447.0,59433.0,0.03388]
[1723728951121,0.84117,59441.0,59425.0,0.0009086]
[1723728951356,0.689602,59441.0,59425.0,0.0009086]
[1723728951562,0.353134,59441.0,59425.0,0.0009086]
[1723728951767,0.1849,59441.0,59425.0,0.0009086]
[1723728951983,0.353134,59441.0,59425.0,0.2030676]
[1723728952215,1.38958314,59441.0,59425.0,0.0009086]
[1723728952426,1.65709254,59441.0,59425.0,0.0009086]
[1723728953050,1.65709254,59441.0,59440.0,0.013075]
[1723728953051,0.64768854,59441.0,59440.0,0.013075]
[1723728953287,0.98615654,59441.0,59440.0,0.009075]
[1723728953495,1.32262454,59441.0,59440.0,0.009075]
[1723728953701,1.32662454,59441.0,59440.0,0.010075]
[1723728953924,1.79335499,59441.0,59440.0,0.010075]
[1723728954128,0.65168854,59441.0,59440.0,0.010075]
[1723728954332,0.2889,59441.0,59440.0,0.010075]
[1723728954554,0.2849,59441.0,59440.0,0.009075]
[1723728954765,0.96115654,59441.0,59440.0,0.009075]
[1723728955006,1.78685329,59441.0,59440.0,0.009075]
[1723728955462,1.79485329,59441.0,59440.0,0.010075]
[1723728955666,1.45838529,59441.0,59440.0,0.010075]
[1723728955908,1.32462454,59441.0,59440.0,0.010075]
[1723728956116,1.66309254,59441.0,59440.0,0.010075]
[1723728956329,1.65909254,59441.0,59440.0,0.009075]
[1723728956535,0.48245454,59441.0,59440.0,0.009075]
[1723728956738,0.98515654,59441.0,59440.0,0.009075]
[1723728956963,1.32862454,59441.0,59440.0,0.010075]
[1723728957170,1.33262454,59441.0,59440.0,0.010075]
[1723728957582,1.32862454,59441.0,59440.0,0.010075]
[1723728957795,1.43402545,59441.0,59440.0,0.011075]
[1723728957997,1.77049345,59441.0,59440.0,0.011075]
[1723728958256,1.43402545,59441.0,59440.0,0.011075]
[1723728958507,1.32462454,59441.0,59440.0,0.010075]
[1723728958710,1.32462454,59441.0,59440.0,0.011075]
[1723728958711,1.66909254,59441.0,59440.0,0.011075]
[1723728958927,2.04659254,59441.0,59440.0,0.011075]
[1723728959161,2.77159254,59441.0,59440.0,0.011075]
[1723728959359,2.94314708,59441.0,59440.0,0.011075]
[1723728960418,2.77159254,59441.0,59440.0,0.011075]
[1723728960630,2.09865654,59441.0,59440.0,0.011075]
[1723728960841,2.07565654,59441.0,59440.0,0.011075]
[1723728961045,1.57095454,59441.0,59440.0,0.011075]
[1723728961249,0.46845454,59441.0,59440.0,0.011075]
[1723728961454,0.7185666,59441.0,59440.0,0.011075]
[1723728961673,0.012,59441.0,59440.0,0.011075]
[1723728961878,1.02472454,59441.0,59440.0,0.011075]
[1723728962109,1.53909254,59441.0,59440.0,0.011075]
[1723728962310,1.87556054,59441.0,59440.0,0.011075]
[1723728962582,2.04711508,59441.0,59440.0,0.011075]
[1723728962779,1.696882,59438.0,59425.0,0.0009086]
[1723728963000,1.86843654,59438.0,59425.0,0.0009086]
[1723728963208,1.99143654,59438.0,59425.0,0.0009086]
[1723728963694,1.65495154,59438.0,59425.0,0.0009086]
[1723728963865,1.31826426,59438.0,59425.0,0.0009086]
[1723728964079,1.4898188,59438.0,59425.0,0.0009086]
[1723728964291,1.31826426,59438.0,59425.0,0.0009086]
[1723728964707,1.31826426,59438.0,59437.0,0.0019086]
[1723728964708,0.1867,59438.0,59437.0,0.0019086]
[1723728964912,0.172242,59438.0,59437.0,0.0019086]
[1723728965147,0.004,59438.0,59437.0,0.0019086]
[1723728965381,0.83755254,59438.0,59437.0,0.0019086]
[1723728965630,1.59242254,59438.0,59437.0,0.0019086]
[1723728965865,0.841382,59426.0,59425.0,0.0009086]
[1723728966113,0.1942,59426.0,59425.0,0.0009086]
[1723728966353,1.23013654,59426.0,59425.0,0.0009086]
[1723728966561,1.79828092,59426.0,59425.0,0.0009086]
[1723728966772,0.841522,59416.0,59415.0,0.009075]
[1723728966982,1.66158554,59416.0,59415.0,0.009075]
[1723728967184,1.32497654,59416.0,59415.0,0.009075]
[1723728967833,1.66158554,59416.0,59415.0,0.009075]
[1723728968056,1.83914008,59416.0,59415.0,0.010075]
[1723728968505,1.83914008,59416.0,59415.0,0.009075]
[1723728968506,1.32497654,59416.0,59415.0,0.009075]
[1723728968717,1.67158554,59416.0,59415.0,0.009075]
[1723728968923,2.00819454,59416.0,59415.0,0.009075]
[1723728969344,2.01119454,59416.0,59415.0,0.009075]
[1723728969549,1.68823669,59416.0,59415.0,0.009075]
[1723728969799,2.19640023,59416.0,59415.0,0.009075]
[1723728970002,2.19640023,59416.0,59391.0,0.0002]
[1723728970003,0.0885,59392.0,59391.0,0.0002]
[1723728970207,0.03,59411.0,59391.0,0.0002]
[1723728970208,0.336695,59401.0,59391.0,0.0002]
[1723728970437,0.123,59400.0,59391.0,0.0002]
[1723728970643,0.168363,59396.0,59391.0,0.0002]
[1723728970848,0.38033181,59400.0,59392.0,0.53154025]
[1723728970849,0.123,59400.0,59392.0,0.53154025]
[1723728971099,0.1119,59408.0,59393.0,0.1109]
[1723728971299,0.0849,59410.0,59393.0,0.12776946]
[1723728971543,0.17155454,59409.0,59394.0,0.33673]
[1723728971756,0.19187727,59415.0,59404.0,0.336675]
[1723728971969,0.0989,59416.0,59396.0,0.1064]
[1723728972181,0.014,59416.0,59413.0,0.168312]
[1723728972397,0.014,59416.0,59415.0,0.168307]
[1723728972606,0.014,59416.0,59414.0,0.01695237]
[1723728972808,0.336579,59422.0,59415.0,0.0169452]
[1723728973032,0.01383144,59429.0,59415.0,0.0169452]
[1723728973033,0.08577727,59419.0,59415.0,0.0169452]
[1723728973310,0.1121,59417.0,59400.0,0.1982]
[1723728973576,0.08577727,59414.0,59402.0,0.51466362]
[1723728973841,0.08577727,59414.0,59391.0,0.0022]
[1723728973842,0.168339,59404.0,59401.0,0.01704557]
[1723728974071,0.17155454,59413.0,59403.0,0.01703123]
[1723728974327,0.05715318,59412.0,59395.0,0.0875]
[1723728974575,0.05715318,59412.0,59391.0,0.0002]
[1723728974576,0.08577727,59402.0,59391.0,0.0002]
[1723728974819,0.16836,59397.0,59396.0,0.01730325]
[1723728975056,0.17155454,59397.0,59391.0,0.0002]
[1723728975568,0.17155454,59397.0,59392.0,0.01733195]
[1723728975812,0.19750999,59397.0,59392.0,0.01733195]
[1723728976070,0.191364,59396.0,59392.0,0.01733195]
[1723728976321,0.19455454,59396.0,59392.0,0.01733195]
[1723728976527,0.19455454,59396.0,59391.0,0.0002]
[1723728976528,0.36291654,59396.0,59391.0,0.0002]
[1723728976743,0.19455454,59396.0,59391.0,0.0002]
[1723728976945,0.001,59397.0,59391.0,0.168574]
[1723728977184,0.001,59397.0,59392.0,0.111]
[1723728977441,0.258533,59406.0,59392.0,0.29670288]
[1723728977627,0.258533,59406.0,59392.0,0.13433088]
[1723728977628,0.001,59396.0,59392.0,0.13433088]
[1723728977836,0.001,59396.0,59392.0,0.12833088]
[1723728978097,0.169363,59396.0,59392.0,0.01733088]
[1723728978294,0.19455454,59395.0,59392.0,0.01733088]
[1723728978506,0.59088727,59393.0,59392.0,0.01733088]
[1723728978758,0.46292454,59393.0,59392.0,0.01733088]
[1723728978959,0.168372,59392.0,59391.0,0.0002]
[1723728979170,0.79967154,59392.0,59391.0,0.0002]
[1723728979401,0.123,59392.0,59391.0,0.0002]
[1723728979625,0.15688673,59392.0,59391.0,0.0002]
[1723728979847,0.15688673,59392.0,59377.0,0.042966]
[1723728979848,0.1898,59391.0,59377.0,0.042966]
[1723728980060,1.037612,59381.0,59377.0,0.009086]
[1723728980272,0.1,59381.0,59377.0,0.009086]
[1723728981134,0.105,59388.0,59377.0,0.009086]
[1723728981360,1.54467562,59390.0,59377.0,0.009086]
[1723728981361,0.014,59381.0,59377.0,0.009086]
[1723728981569,0.168393,59385.0,59377.0,0.009086]
[1723728981805,0.17155454,59387.0,59377.0,0.009086]
[1723728981806,0.33994354,59387.0,59377.0,0.009086]
[1723728982069,0.123,59386.0,59377.0,0.009086]
[1723728982308,0.22188642,59386.0,59377.0,0.009086]
[1723728982550,0.505212,59381.0,59380.0,0.013075]
[1723728982779,0.1,59381.0,59380.0,0.013075]
[1723728983006,0.605212,59381.0,59380.0,0.013075]
[1723728983245,0.1,59381.0,59380.0,0.013075]
[1723728983875,0.505212,59381.0,59380.0,0.009075]
[1723728984078,0.77676654,59381.0,59380.0,0.009075]
[1723728984283,0.19139,59386.0,59380.0,0.009075]
[1723728984489,0.336792,59384.0,59380.0,0.009075]
[1723728984702,0.27155454,59385.0,59380.0,0.013075]
[1723728984921,0.023,59384.0,59380.0,0.013075]
[1723728985434,0.339778,59387.0,59384.0,0.168392]
[1723728985435,0.003,59387.0,59384.0,0.168392]
[1723728985674,0.1118,59400.0,59384.0,0.34014813]
[1723728985945,0.1118,59400.0,59381.0,0.1101]
[1723728985946,0.336733,59395.0,59385.0,0.0153756]
[1723728986152,0.01967,59400.0,59386.0,0.0902]
[1723728986363,0.1046,59407.0,59387.0,0.28105454]
[1723728986568,0.16834,59404.0,59391.0,0.202255]
[1723728986811,0.50821954,59407.0,59392.0,0.16837]
[1723728987016,0.009,59400.0,59392.0,0.01532538]
[1723728987238,0.17155454,59399.0,59392.0,0.01532538]
[1723728987445,0.336732,59395.0,59387.0,0.1095]
[1723728987649,0.01805545,59398.0,59393.0,0.01569359]
[1723728987650,0.336723,59396.0,59393.0,0.01569359]
[1723728987862,0.336728,59395.0,59387.0,0.1095]
[1723728988065,0.168367,59394.0,59387.0,0.1095]
[1723728988278,0.01805545,59398.0,59387.0,0.1095]
[1723728988279,0.16837,59393.0,59392.0,0.004]
[1723728988479,0.31139154,59393.0,59392.0,0.01570076]
[1723728988696,0.29455454,59393.0,59382.0,0.1089]
[1723728988901,0.46292454,59393.0,59383.0,0.01576533]
[1723728989314,0.29455454,59393.0,59383.0,0.01576533]
[1723728989523,0.29455454,59393.0,59392.0,0.004]
[1723728989784,0.114,59403.0,59392.0,0.004]
[1723728989998,0.33666,59408.0,59393.0,0.107]
[1723728990241,0.001,59395.0,59394.0,0.168367]
[1723728990487,0.1908,59414.0,59394.0,0.252267]
[1723728990739,0.1061,59428.0,59407.0,0.1133]
[1723728990983,0.336519,59432.0,59413.0,0.1133]
[1723728991226,0.1061,59434.0,59418.0,0.08577727]
[1723728991227,0.17155454,59431.0,59418.0,0.08577727]
[1723728991468,0.067423,59439.0,59419.0,0.1067601]
[1723728991712,0.4274,59451.0,59419.0,0.1067601]
[1723728991713,0.1065,59454.0,59431.0,0.03388]
[1723728991958,0.067401,59453.0,59436.0,0.08577727]
[1723728992201,0.336331,59466.0,59436.0,0.0882]
[1723728992202,0.1065,59456.0,59436.0,0.0882]
[1723728992441,0.1065,59456.0,59439.0,0.336474]
[1723728992682,0.067393,59460.0,59440.0,0.25733181]
[1723728992927,0.084,59467.0,59448.0,0.336427]
[1723728993146,0.17155454,59466.0,59449.0,0.42219727]
[1723728993403,0.17155454,59466.0,59452.0,0.168202]
[1723728993663,0.084,59475.0,59452.0,0.17155454]
[1723728993664,0.067377,59475.0,59452.0,0.17155454]
[1723728993908,0.084,59482.0,59454.0,0.03388]